Cogmind - Beta 13 @@@ ROGUE MODE // 2024.04.28 @ 20:14:46 Player: orthostice Result: Destroyed by G-47 Trooper with Particle Gun Performance ------------- Evolutions (2) 1000 Regions Visited (5) 1000 Robots Destroyed (27) 135 Value Destroyed (912) 912 Prototype IDs (1) 20 Alien Tech Used (0) 0 Bonus (30) 30 TOTAL SCORE: 3097 Bonus ------- High Alert Combat Kills 30 Cogmind --------- Core Integrity 0/550 Matter 176/300 Energy 99/100 System Corruption 2% Temperature Cool (18) Movement Core (50) Location -8/Storage Parts ------- > --- POWER (1) -------- (None) > --- PROPULSION (3) --- (None) > --- UTILITY (5) ------ (None) > --- WEAPON (2) ------- (None) > --- INVENTORY (5) ---- Assault Rifle Peak State ------------ > --- POWER ------------ Light Angular Momentum Engine > --- PROPULSION ------- Cesium-ion Thruster Improved VTOL Module Xenon Bombardment Thruster > --- UTILITY ---------- Improved Signal Interpreter Targeting Computer Targeting Computer Targeting Computer Improved Targeting Computer > --- WEAPON ----------- Assault Rifle Rocket Launcher > --- INVENTORY -------- Improved VTOL Module Improved VTOL Module Rocket Launcher [Rating: 28] Favorites ----------- Power Ion Engine Engine Ion Engine Propulsion Light Treads Treads Light Treads Flight Unit Cesium-ion Thruster Utility Improved Signal Interpreter Device Heat Sink Storage Large Matter Pod Processor Improved Signal Interpreter Weapon Light Assault Rifle Energy Gun Particle Gun Ballistic Gun Light Assault Rifle Launcher Rocket Launcher Build | -11 -10 -9 -9 -8 -8 ------- Run | Yrd Mat Mat Min Mat Sto Slots Evolved 4 | . . 2 . 2 . Power . | . . . . . . Propulsion 1 | . . . . 1 . Utility 3 | . . 2 . 1 . Weapon . | . . . . . . Parts Attached 46 | 6 5 9 6 . 20 Power 6 | 1 2 . 1 . 2 Engine 6 | 1 2 . 1 . 2 Core . | . . . . . . Reactor . | . . . . . . Propulsion 10 | 2 . 3 2 . 3 Treads 2 | 2 . . . . . Leg . | . . . . . . Wheel . | . . . . . . Hover . | . . . . . . Flight 8 | . . 3 2 . 3 Utility 11 | 1 2 5 . . 3 Device 3 | . . 3 . . . Storage 3 | 1 2 . . . . Processor 5 | . . 2 . . 3 Hackware . | . . . . . . Protection . | . . . . . . Artifact . | . . . . . . Weapon 19 | 2 1 1 3 . 12 Energy Gun 1 | . . 1 . . . Energy Cannon . | . . . . . . Ballistic Gun 11 | 2 1 . 3 . 5 Ballistic Cannon . | . . . . . . Launcher 7 | . . . . . 7 Special Weapon . | . . . . . . Impact Weapon . | . . . . . . Slashing Weapon . | . . . . . . Piercing Weapon . | . . . . . . Special Melee Weapon . | . . . . . . Unidentified Prototypes 1 | . . . . . 1 Parts Lost 13 | . 1 2 3 . 7 Power 2 | . . . . . 2 Propulsion 5 | . . 1 1 . 3 Utility 2 | . . 1 1 . . Weapon 4 | . 1 . 1 . 2 Highest Loss Streak 6 | . 1 2 5 . 6 To Critical Strikes 1 | . . . 1 . . Average Slot Usage (%) 87 | . 96 85 74 63 82 Engine 11 | . 14 11 11 9 6 Treads 13 | . 28 6 . . . Flight 11 | . . 15 21 18 23 Device 1 | . . 10 . . . Storage 12 | . 24 7 . . . Processor 13 | . . 12 22 18 37 Energy Gun 1 | . . 7 1 . . Ballistic Gun 20 | . 28 14 18 18 10 Naked Turns 12 | . . . . . 12 Heaviest Build 30 | 10 30 30 9 9 17 Greatest Support 40 | 40 40 40 16 11 16 Greatest Overweight (x) 5 | 1 . 5 1 . 1 Average Overweight (x) . | . . . . . . Largest Inventory Capacity 15 | 8 15 15 5 5 5 Average Capacity 8 | 7 10 8 5 5 5 Most Carried 11 | 6 10 11 5 4 5 Average Carried 6 | 3 8 6 4 4 3 Final Capacity 15 | 8 15 5 5 5 5 Final Carried 9 | 6 9 4 4 4 1 Class Distribution -------------------- 70% | Mutant 29% | Sprinter Dominant Class ---------------- Mutant | -10/Materials Sprinter | -9/Materials Mutant | -9/Mines Mutant | -8/Materials Sprinter | -8/Storage Resources | -11 -10 -9 -9 -8 -8 ----------- Run | Yrd Mat Mat Min Mat Sto Matter Collected 950 | 243 250 10 64 . 383 Remotely . | . . . . . . Salvage Created 708 | . 218 . 43 . 447 Parts 42 | . 12 . 3 . 27 Haulers Intercepted . | . . . . . . Recyclers Shooed 1 | . . 1 . . . Parts Field Recycled . | . . . . . . Retrieved Matter . | . . . . . . Parts Self-Destructed . | . . . . . . Prevented . | . . . . . . Kills | -11 -10 -9 -9 -8 -8 ------- Run | Yrd Mat Mat Min Mat Sto Combat Hostiles Destroyed 25 | . 6 . 3 . 16 Guns 9 | . 6 . 3 . . AOE 16 | . . . . . 16 Classes Destroyed 8 | . 2 . . . 6 Worker 1 | . . . . . 1 Watcher 1 | . . . . . 1 Swarmer 8 | . 2 . 3 . 3 Grunt 12 | . 4 . . . 8 Duelist 2 | . . . . . 2 Protector 1 | . . . . . 1 Sentry 1 | . . . . . 1 Hunter 1 | . . . . . 1 Best Kill Streak 7 | . 3 . 2 . 7 Combat Bots Only 6 | . 3 . 2 . 6 Max Kills in Single Turn 3 | . 1 . 1 . 3 Gunslinging . | . . . . . . Exploded 3 | . . . . . 3 Melee . | . . . . . . Uniques/NPCs Destroyed . | . . . . . . Combat | -11 -10 -9 -9 -8 -8 -------- Run | Yrd Mat Mat Min Mat Sto Hostile Shots Fired 228 | . 75 20 47 . 86 Missed 86 | . 26 10 16 . 34 Damage Taken 1965 | . 588 155 243 . 979 Core 787 | . 135 15 77 . 560 Absorbed by Shields . | . . . . . . Core Remaining (%) 74 | 100 46 . 77 . . Volleys Fired 61 | . 23 6 17 . 15 Largest 2 | . 2 2 2 . 2 Hottest 85 | . 40 85 85 . 66 Shots Fired 105 | . 45 12 20 . 28 Gun 77 | . 45 12 20 . . Cannon . | . . . . . . Launcher 28 | . . . . . 28 Special . | . . . . . . Kinetic 68 | . 45 6 17 . . Thermal 9 | . . 6 3 . . Explosive 28 | . . . . . 28 Electromagnetic . | . . . . . . Robot Hit Streak 14 | . 8 9 3 . 14 Robot Miss Streak 5 | . 2 2 5 . 1 Penetration Max . | . . . . . . Secondary Targets 2 | . 1 . 1 . . Max Gunslinging Chain 1 | . 1 . 1 . . Shots Hit Robots 69 | . 34 7 8 . 20 Core Hits 57 | . 16 2 3 . 36 Critical Kills . | . . . . . . Critical Parts Destroyed . | . . . . . . Critical Strikes . | . . . . . . Melee Attacks . | . . . . . . Impact . | . . . . . . Slashing . | . . . . . . Piercing . | . . . . . . Sneak Attacks . | . . . . . . Combat Hostiles . | . . . . . . Follow-up Attacks . | . . . . . . Damage Inflicted 2635 | . 288 61 92 . 2194 Guns 434 | . 281 61 92 . . Cannons . | . . . . . . Explosions 2194 | . . . . . 2194 Melee . | . . . . . . Ramming 7 | . 7 . . . . Kinetic 374 | . 281 33 60 . . Thermal 60 | . . 28 32 . . Explosive 2194 | . . . . . 2194 Electromagnetic . | . . . . . . Impact . | . . . . . . Slashing . | . . . . . . Piercing . | . . . . . . Highest Corruption 2 | . . . . . 2 Average Corruption 2 | . . . . . 2 Corruption Purged . | . . . . . . Corruption Blocked . | . . . . . . Effects 1 | . . . . . 1 Parts Fused 1 | . . . . . 1 Overload Shots . | . . . . . . Overflow Damage 37 | . . . . . 37 Projectiles . | . . . . . . Explosions 37 | . . . . . 37 Melee . | . . . . . . Knockbacks . | . . . . . . Impact . | . . . . . . Kinetic . | . . . . . . Secondary . | . . . . . . Self-Inflicted Damage 139 | . . . . . 139 Shots 3 | . . . . . 3 Rammed 2 | . 2 . . . . Targets Rammed 2 | . 2 . . . . Kicked . | . . . . . . Crushed . | . . . . . . Highest Temperature 107 | . 37 46 107 . 45 Average Temperature 23 | . 10 21 51 . 22 Received Heat Transfer 768 | . 315 36 12 . 405 Siege Activations . | . . . . . . Robots Corrupted . | . . . . . . Combat Hostiles . | . . . . . . Parts Fried . | . . . . . . Impact Corruptions . | . . . . . . Robots Melted . | . . . . . . Combat Hostiles . | . . . . . . Parts Melted . | . . . . . . Heat Transferred 148 | . . 74 74 . . Parts Sabotaged . | . . . . . . Parts Stolen . | . . . . . . Parts Stripped . | . . . . . . Power Chain Reactions . | . . . . . . Alert | -11 -10 -9 -9 -8 -8 ------- Run | Yrd Mat Mat Min Mat Sto Peak Influence 632 | . 185 135 105 40 632 Initial 50 | . . . 50 40 16 Average 79 | . 34 35 99 40 231 Maximum Alert Level 2 | . . . . . 2 Low Security (%) 89 | 100 100 100 100 100 42 Level 1 6 | . . . . . 36 Level 2 3 | . . . . . 21 Level 3 . | . . . . . . Level 4 . | . . . . . . Level 5 . | . . . . . . High Security . | . . . . . . Max Security . | . . . . . . Squads Dispatched 8 | . 1 1 1 . 5 Investigation 1 | . . . 1 . . Extermination . | . . . . . . Reinforcement 4 | . 1 1 . . 2 Assault 2 | . . . . . 2 Garrison 1 | . . . . . 1 Intercept . | . . . . . . Searches Triggered . | . . . . . . Construction Impeded . | . . . . . . Haulers Reinforced . | . . . . . . Active Scanning Responses . | . . . . . . Cargo Convoy Interrupts . | . . . . . . Stealth | -11 -10 -9 -9 -8 -8 --------- Run | Yrd Mat Mat Min Mat Sto Distress Signals 6 | . 4 2 . . . Communications Jammed . | . . . . . . Distress Signals . | . . . . . . Times Spotted 57 | . 11 10 5 . 31 Peak Tracking Total 11 | . 5 7 3 . 11 Tactical Retreats 6 | . 2 2 . . 2 Traps | -11 -10 -9 -9 -8 -8 ------- Run | Yrd Mat Mat Min Mat Sto Traps Triggered 2 | . . . . . 2 Indirectly . | . . . . . . Trap Hack Attempts . | . . . . . . Triggered . | . . . . . . Disarmed . | . . . . . . Reprogrammed . | . . . . . . Reused . | . . . . . . Traps Extracted . | . . . . . . Installed . | . . . . . . Triggered . | . . . . . . Machines | -11 -10 -9 -9 -8 -8 ---------- Run | Yrd Mat Mat Min Mat Sto Machines Disabled 4 | . . . . . 4 Max in Single Turn 2 | . . . . . 2 Machines Repaired . | . . . . . . Machines Dismantled . | . . . . . . Machines Sabotaged . | . . . . . . Overloaded Fab Kills . | . . . . . . Hacking | -11 -10 -9 -9 -8 -8 --------- Run | Yrd Mat Mat Min Mat Sto Machines Accessed 3 | . . 1 1 . 1 Terminals 1 | . . . . . 1 Fabricators . | . . . . . . Repair Stations . | . . . . . . Recycling Units . | . . . . . . Scanalyzers 1 | . . 1 . . . Garrison Access . | . . . . . . Total Hacks 4 | . . 2 1 . 1 Successful 4 | . . 2 1 . 1 Failed . | . . . . . . Catastrophic . | . . . . . . Database Lockouts . | . . . . . . Manual . | . . . . . . Terminals 1 | . . . . . 1 Fabricators . | . . . . . . Repair Stations . | . . . . . . Recycling Units . | . . . . . . Scanalyzers 2 | . . 2 . . . Garrison Access . | . . . . . . Terminal Hacks 2 | . . . 1 . 1 Open Door 2 | . . . 1 . 1 Fabricator Hacks . | . . . . . . Repair Station Hacks . | . . . . . . Recycling Unit Hacks . | . . . . . . Scanalyzer 2 | . . 2 . . . Insert Component 1 | . . 1 . . . Analyze 1 | . . 1 . . . Garrison Access Hacks . | . . . . . . Unauthorized Hacks . | . . . . . . Terminals . | . . . . . . Fabricators . | . . . . . . Repair Stations . | . . . . . . Recycling Units . | . . . . . . Scanalyzers . | . . . . . . Garrison Access . | . . . . . . Data Cores Recovered . | . . . . . . Used . | . . . . . . Hacking Detections . | . . . . . . Full Trace Events . | . . . . . . Feedback Events . | . . . . . . Feedback Blocked . | . . . . . . Robot Schematics Acquired . | . . . . . . Robots Built . | . . . . . . Authchips . | . . . . . . Time . | . . . . . . Total Robot Build Rating . | . . . . . . Part Schematics Acquired 1 | . . 1 . . . Parts Built . | . . . . . . Authchips . | . . . . . . Time . | . . . . . . Total Part Build Rating . | . . . . . . Parts Repaired . | . . . . . . Time . | . . . . . . Parts Recycled . | . . . . . . Recycled Matter . | . . . . . . Retrieved Matter . | . . . . . . Retrieved Components . | . . . . . . Parts Scanalyzed 1 | . . 1 . . . Part Schematics Acquired 1 | . . 1 . . . Parts Damaged 1 | . . 1 . . . Bothacking | -11 -10 -9 -9 -8 -8 ------------ Run | Yrd Mat Mat Min Mat Sto Used RIF Installer . | . . . . . . Robots Hacked . | . . . . . . Non-combat . | . . . . . . Combat . | . . . . . . Robot Hacks Applied . | . . . . . . Relay Couplers Released . | . . . . . . Fabnet Peak Effective % . | . . . . . . Robots Rewired . | . . . . . . Allies Hacked . | . . . . . . Hacks Repelled . | . . . . . . Allies | -11 -10 -9 -9 -8 -8 -------- Run | Yrd Mat Mat Min Mat Sto Total Allies 2 | . . . . . 2 Largest Group 2 | . . . . . 2 Highest-Rated Group 62 | . . . . . 62 Highest-Rated Ally 31 | . . . . . 31 Total Orders . | . . . . . . Ally Attacks 6 | . . . . . 6 Total Damage 88 | . . . . . 88 Kills . | . . . . . . Allies Corrupted . | . . . . . . Allies Melted . | . . . . . . Intel | -11 -10 -9 -9 -8 -8 ------- Run | Yrd Mat Mat Min Mat Sto Robot Analysis Total . | . . . . . . Derelict Logs Recovered 1 | . . . 1 . . Drone Launches . | . . . . . . Drone Recoveries . | . . . . . . Exploration | -11 -10 -9 -9 -8 -8 ------------- Run | Yrd Mat Mat Min Mat Sto Turns Passed 1455 | 96 591 237 241 24 266 Spaces Moved 1875 | 55 319 432 516 65 488 Core 16 | 8 . . . . 8 Treads 406 | 47 319 40 . . . Legs . | . . . . . . Wheels . | . . . . . . Hover . | . . . . . . Flight 1453 | . . 392 516 65 480 Fastest Speed 30 | 50 160 32 32 34 30 Average Speed 61 | 149 160 44 34 34 32 Slowest Speed 455 | 160 160 455 115 34 106 Overloaded Moves . | . . . . . . Propulsion Burnouts . | . . . . . . Robots Hopped 23 | . . 2 10 . 11 Cave-ins Triggered . | . . . . . . Exploration Rate (%) 37 | 4 39 30 76 8 66 Regions Visited 5 Branch Regions 2 Pre-discovered Areas . | . . . . . . Known Exits Taken 3 | . . 1 1 1 . Unknown Exits Taken 2 | 1 1 . . . . Scrap Searched 1 | . . . 1 . . Spaces Dug . | . . . . . . Terrain Destroyed 178 | . . . . . 178 Melee . | . . . . . . Projectile . | . . . . . . AOE 178 | . . . . . 178 Terrain Rammed . | . . . . . . Walls Destroyed . | . . . . . . Machines Disabled . | . . . . . . Actions | -11 -10 -9 -9 -8 -8 --------- Run | Yrd Mat Mat Min Mat Sto Total 2070 | 66 362 464 554 66 558 Wait 38 | . 4 2 18 . 14 Move 1826 | 54 318 427 496 64 467 Hop 21 | . . 2 9 . 10 Pick Up 40 | 6 7 6 4 1 16 Fast Attach 16 | 6 1 4 1 . 4 Attach 10 | . 1 2 1 . 6 Detach 1 | . . . . . 1 Swap 20 | . 3 3 4 . 10 Drop 35 | . 3 12 4 1 15 Fire 61 | . 23 6 17 . 15 Melee . | . . . . . . Ram . | . . . . . . Kick . | . . . . . . Crush 2 | . 2 . . . . Escape Stasis . | . . . . . . Rewire . | . . . . . . Trap . | . . . . . . Miscellaneous . | . . . . . . Route ------- -11/Scrapyard -10/Materials -9/Materials -9/Mines (discovered 2 exits: *Mat x2) -8/Materials -8/Storage History --------- Turn | Location | Event 25 | -11/Scrapyard | Discovered new exit (range 15) 97 | -11/Scrapyard | Entered Materials 338 | -10/Materials | Build established: Mutant 668 | -10/Materials | Discovered new exit (range 11) 684 | -10/Materials | Core integrity fell below 50% 688 | -10/Materials | Entered another Materials area 688 | -9/Materials | Evolved 2 slots: Utility x2 922 | -9/Materials | Discovered new exit (range 11) 925 | -9/Materials | Identified exit to Mines 925 | -9/Materials | Entered Mines 932 | -9/Mines | Found a hidden stash of uninstalled traps 989 | -9/Mines | Lost 5 parts (2n2u1w) 1031 | -9/Mines | Identified exit to Materials 1041 | -9/Mines | Discovered exit to Materials (range 7) 1098 | -9/Mines | Received a Rocket Launcher from a helpful Derelict 1127 | -9/Mines | Met a Derelict shopkeep closing up shop 1166 | -9/Mines | Entered Materials 1166 | -8/Materials | Evolved 2 slots: Propulsion x1, Utility x1 1182 | -8/Materials | Discovered new exit (range 6) 1186 | -8/Materials | Identified exit to Storage 1190 | -8/Materials | Entered Storage 1199 | -8/Storage | Met a pair of Derelict thieves 1426 | -8/Storage | Garrison activated, responded to threat 1444 | -8/Storage | Released all parts (8) 1448 | -8/Storage | Core integrity fell below 50% 1454 | -8/Storage | Core integrity fell below 20% 1456 | -8/Storage | Destroyed by G-47 Trooper with Particle Gun Last Messages --------------- Rocket Launcher destroyed. Destroyed Rocket Launcher. G-47 Trooper destroyed. Cesium-ion Thruster destroyed. Destroyed Cesium-ion Thruster. The unstable cave ceiling collapses. Y-45 Defender crushed by falling debris. Imp. VTOL Module destroyed. K-01 Serf collects debris. The unstable cave ceiling collapses. Rocket Launcher destroyed. Acquired Lgt. Ion Engine. System corrupted: Imp. VTOL Module fused. Released Imp. VTOL Module. Released Targeting Computer. Released Imp. Targeting Computer. Released Imp. Signal Interpreter. Released Targeting Computer. Released Lgt. Ion Engine. The unstable cave ceiling collapses. Map ----- +----------------------------------------------------+ | | | | | | | | | | | | | | | | | | | | | | | | | | | ????????????????????#############????????????????? | | ???????????????????## ##???????????????? | | ???????????????????# !! "????????????????? | | ????????????????????# ! T"???????????????? | | ????????????????????# " " ""???????????????? | | ????????????????????# "R" #????????????????? | | ????????????????????# """ #????????????????? | | ????????????????????# #????????????????? | | ????????????????????######Y######????????????????? | | ???????????????????????## #?????????????????????? | | ???????????????????????# ##????????????????????? | | ??????????????????????## ##???????????????????? | | ??????????????????????# @* #???????????????????? | | ??????????????????????# l #???????????????????? | | ??????????????????????# #???????????????????? | | ???????????????????#### ##"""##?????????????? | | ???????????????????#!!" g # T#?????????????? | | ???????????????????#!! ##?????????????? | | ???????????????????#!!" gg +#########?????????? | | ???????????????????#### = ????????? | | ???????????????????### % ????????? | | ??????????????????#"""## gg """"" ###?????????? | | ??????????#??######"Y" """" #???????????? | | ??????????? Y Y """"" #???????????? | | ???????????# """ """ ! Y #???????????? | | ???????????# """ """ # #???????????? | | ???????????# """ """ ## #####+##+##???????????? | | ???????#"#?? ! !## #?????? ##??????????? | | ???????T #????# # # ##?# #???? ""??????????? | | ########+###### # ##?# #?? T"??????????? | | #[ ### # ""??????????? | | * + #???????????? | | # """ """ #???????????? | | #########+##### #??"" "???????????????? | | ???????? ???#! ! #???? "???????????????? | | ???????? ""???#! !## ######?????????????????????? | | ??????? """??#! !## # ?????????????????????????? | +----------------------------------------------------+ Best States ------------- Heat Dissipation 38 Energy Generation 18 Energy Capacity 250 Matter Stores 450 Matter Capacity 450 Sight Range 16 Terrain Scan Density 10 Additional Mass Support 6 Evasion (%) 64 Targeting Accuracy 21 Recoil Reduction 2 Item Schematics ----------------- Cesium-ion Thruster | -9/Materials | Scanalyzed Robot Schematics ------------------ None Fabricated ------------ Nothing Alien Tech Used ----------------- None Achievements -------------- Troublemaker Challenges ------------ None Game ------ Seed HeatRiotPlating Manual? 0 Play Time 00:25:53 Cumulative 5.4 hours Start 2024.04.28 @ 19:04:51 End 2024.04.28 @ 20:14:46 Sessions 2 Manual Loads 0 Difficulty Rogue Special Mode None Game No. 12 Rogue 12 Adventurer 0 Explorer 0 Win Type - Total 0 Types 0/0/0/0/0/0/0/0/0 Lore% 12 Gallery% 9 Achievement% 11 Wizard Run 0 Options --------- Layout 1 ASCII 0 Keyboard 0 Movement Vi Keybinds 0 Fullscreen 1 Font 32/SmallcapsGlow Map View 50x35 Zoom Use 0% Tactical HUD 0 Map Filters NONE Filters NONE Steam 1 RUN: 3494288e-a5f8-48e6-9dd3-ae748dfaf2c6